[Event "German Bundesliga 2021-22"]
[Site "Germany"]
[Date "2022.04.09"]
[Round "3.13"]
[White "Fedorchuk, Sergey A."]
[Black "Georgiadis, Nico"]
[Result "1/2-1/2"]
[ECO "C54"]
[WhiteElo "2605"]
[BlackElo "2562"]
[Annotator "TA"]
[PlyCount "95"]
[EventDate "2022.03.05"]
[EventType "team-tourn"]
[EventCountry "GER"]
[SourceTitle "playchess.com"]
[Source "ChessBase"]
[SourceQuality "1"]
[TimeControl "40/5400+30:1800+30"]

{[%evp 12,95,13,12,15,18,23,14,16,7,9,0,0,-14,0,-14,-6,-14,-14,-11,-10,-13,0,0,0,0,0,-29,0,0,15,17,14,0,0,0,0,0,0,0,0,6,4,5,16,16,18,22,29,29,52,31,98,98,88,88,199,181,170,158,158,116,131,131,122,112,302,60,52,0,0,0,0,0,0,0,0,0,8,0,0,0,0,0,0,0]} 1. e4 {[%emt 0:00:00]} e5 {[%emt 0:00:00]} 2. Nf3 {[%emt 0:00:00]} Nc6 {[%emt 0:00:00]} 3. Bc4 {[%emt 0:00:00]} Bc5 {[%emt 0:00:00]} 4. d3 {[%emt 0:00:00]} Nf6 {[%emt 0:00:00]} 5. O-O {[%emt 0:00:00]} d6 {[%emt 0:00:00]} 6. c3 {[%emt 0:00:00]} O-O {[%emt 0:00:00]} 7. Re1 {[%emt 0:00:01]} a5 {[%emt 0:00:00] C54: Giuoco Piano: 4 c3 Nf6, main lines with 5 d4 and 5 d3.} 8. h3 {[%emt 0:06:42]} Be6 {[%emt 0:00:00][%cal Of6e4]} 9. Bb5 {[%emt 0:05:03]} Ba7 {[%emt 0:00:00]} 10. Nbd2 {[%emt 0:25:30]} Ne7 {[%emt 0:00:00]} 11. Nf1 {[%emt 0:00:40]} Ng6 {[%emt 0:02:51]} 12. Ng3 {[%emt 0:00:23]} c6 {[%emt 0:07:14]} 13. Ba4 {[%emt 0:00:56]} d5 {[%emt 0:21:45]} 14. exd5 {[%emt 0:14:53]} (14. Bb3 {is more complex.} Re8 15. Bg5 h6 16. Bxf6 Qxf6 17. d4) 14... Nxd5 {[%emt 0:01:08][%cal Bf6d5,Bd5f4,Bf4d3][%mdl 32]} ({But not} 14... Qxd5 15. Bb3 Qd6 16. Bxe6 fxe6 17. Bg5 $14) 15. d4 {[%emt 0:00:58]} exd4 {[%emt 0:07:43]} 16. Nxd4 {[%emt 0:00:08]} Bxd4 {[%emt 0:15:25]} 17. Qxd4 {[%emt 0:02:54]} Ndf4 {[%emt 0:00:51] [#] Inhibits Nh5.} 18. Re4 $146 {[%emt 0:14:53]} ({Predecessor:} 18. Qxd8 Rfxd8 19. Bc2 Nd3 20. Bxd3 Rxd3 21. Be3 Rd7 22. Ne4 Bd5 23. Nc5 Re7 24. b3 {½-½ (33) Mamedov,R (2673)-Ganguly,S (2617) Riga 2021}) 18... Nd3 {[%emt 0:03:09]} 19. Bb3 {[%emt 0:01:41]} Qxd4 {[%emt 0:16:36]} 20. Rxd4 {[%emt 0:00:16]} Rfd8 {[%emt 0:05:51]} 21. Rxd8+ {[%emt 0:09:17]} Rxd8 {[%emt 0:00:05]} 22. Bg5 {[%emt 0:00:38]} Re8 {[%emt 0:00:56]} 23. Bxe6 {[%emt 0:03:47]} Rxe6 {[%emt 0:00:06]} 24. Rd1 {[%emt 0:01:40]} h6 {[%emt 0:07:47]} 25. Rxd3 {[%emt 0:07:24]} hxg5 $11 {[%emt 0:00:05][%mdl 4096] Endgame KRN-KRN} 26. Rd8+ {[%emt 0:00:09]} Kh7 {[%emt 0:03:44]} 27. Kf1 {[%emt 0:00:31] Against Re1+} b5 {[%emt 0:02:31]} 28. Nf5 {[%emt 0:01:50]} Ne5 {[%emt 0:01:46]} 29. b3 {[%emt 0:01:18]} g4 {[%emt 0:00:56]} 30. hxg4 {[%emt 0:02:57]} Nxg4 {[%emt 0:00:04]} 31. Rd6 {[%emt 0:00:30]} (31. Nd4 $5 {[%cal Rd4e6]} Rf6 32. f3 $11) 31... Rxd6 {[%emt 0:02:06]} ({Black should try} 31... Re5 $1 $14 32. Ng3 Re6) 32. Nxd6 $14 {[%emt 0:00:02] KN-KN} Kg6 {[%emt 0:00:09]} 33. c4 {[%emt 0:00:16]} b4 {[%emt 0:03:23]} (33... Kf6 $16 {was called for.}) 34. Nb7 $18 {[%emt 0:00:16]} Kf5 {[%emt 0:00:13]} 35. Nxa5 {[%emt 0:00:40]} Ne5 {[%emt 0:00:05]} 36. Ke2 {[%emt 0:00:51]} Ke4 {[%emt 0:00:25]} 37. Nb7 $1 {[%emt 0:00:50]} Kd4 {[%emt 0:00:32] [#]} 38. Kd2 $1 {[%emt 0:00:44]} g6 $2 {[%emt 0:01:32] [#]} (38... g5 $16) 39. Nd6 $2 {[%emt 0:00:29]} (39. f3 $1 $18 f6 40. Nd8) 39... f5 $14 {[%emt 0:00:17]} 40. Nc8 {[%emt 0:00:29]} (40. Nb7 $14) 40... f4 $11 {[%emt 0:00:29] The position is equal.} 41. Nd6 {[%emt 0:30:49]} f3 {[%emt 0:00:00]} 42. gxf3 {[%emt 0:00:00]} Nxf3+ {[%emt 0:00:00]} 43. Ke2 {[%emt 0:00:00]} Ng1+ {[%emt 0:00:00]} 44. Kf1 {[%emt 0:00:00]} Nf3 {[%emt 0:00:00]} 45. Ke2 {[%emt 0:00:00]} Ng1+ {[%emt 0:00:00]} 46. Kd2 {[%emt 0:00:00]} Nf3+ {[%emt 0:00:00]} 47. Kc2 {[%emt 0:00:00]} Ne1+ {[%emt 0:00:00]} 48. Kd2 {[%emt 0:00:00] Black escapes into a draw.  Weighted Error Value: White=0.16 (very precise) /Black=0.11 (very precise)} 1/2-1/2

[Event "German Bundesliga 2021-22"]
[Site "Germany"]
[Date "2022.04.09"]
[Round "3.13"]
[White "Zilka, Stepan"]
[Black "Coenen, Michael"]
[Result "1-0"]
[ECO "B48"]
[WhiteElo "2599"]
[BlackElo "2326"]
[Annotator "TA"]
[PlyCount "76"]
[EventDate "2022.03.05"]
[EventType "team-tourn"]
[EventCountry "GER"]
[SourceTitle "playchess.com"]
[Source "ChessBase"]
[SourceQuality "1"]
[TimeControl "40/5400+30:1800+30"]

{[%evp 20,76,22,24,26,33,23,0,0,0,4,0,0,0,0,0,0,0,0,0,0,0,35,29,30,21,24,8,14,11,10,9,15,0,0,0,0,0,0,0,0,0,0,1,17,15,172,170,164,104,121,95,127,127,297,288,275,252,632]} 1. e4 {[%emt 0:00:00]} c5 {[%emt 0:00:00]} 2. Nf3 {[%emt 0:00:00]} e6 {[%emt 0:00:00]} 3. d4 {[%emt 0:00:00]} cxd4 {[%emt 0:00:00]} 4. Nxd4 {[%emt 0:00:00]} Nc6 {[%emt 0:00:00]} 5. Nc3 {[%emt 0:00:00]} Qc7 {[%emt 0:00:00]} 6. Be3 {[%emt 0:00:00]} a6 {[%emt 0:00:00]} 7. a3 {[%emt 0:00:00]} Nf6 {[%emt 0:00:00]} 8. f4 {[%emt 0:00:00]} d6 {[%emt 0:00:00]} 9. Qf3 {[%emt 0:00:00]} Be7 {[%emt 0:00:00]} 10. Bd3 {[%emt 0:00:00]} O-O {[%emt 0:00:10]} 11. O-O {[%emt 0:00:00]} Nxd4 {[%emt 0:03:16] B48: Sicilian: Taimanov: 5 Nc3 Qc7 6 Be3 a6 without Be2.} 12. Bxd4 {[%emt 0:00:00]} e5 {[%emt 0:00:27]} 13. fxe5 $5 {[%emt 0:03:50][%mdl 4] An interesting side line.} dxe5 {[%emt 0:00:05] The position is equal.} 14. Qg3 {[%emt 0:00:19]} Bc5 {[%emt 0:00:15]} 15. Bxc5 {[%emt 0:00:10]} Qxc5+ {[%emt 0:00:04]} 16. Kh1 {[%emt 0:00:06]} Qe7 {[%emt 0:16:20] [#]} 17. Nd5 $146 {[%emt 0:00:21]} ({Predecessor:} 17. Rae1 Bd7 18. Re3 Be6 19. Ree1 Nd7 20. Nd5 Bxd5 21. exd5 Rac8 22. Bf5 g6 23. c3 {½-½ (41) Campos Jimenez,A (2373)-Morales Romero,P (2323) Mayabeque 2019}) 17... Nxd5 {[%emt 0:00:11]} 18. exd5 {[%emt 0:00:02]} Bd7 {[%emt 0:10:20]} 19. Rae1 {[%emt 0:15:08]} Rae8 {[%emt 0:01:24]} 20. c4 {[%emt 0:00:16]} a5 {[%emt 0:12:02]} 21. b4 {[%emt 0:07:52]} axb4 {[%emt 0:04:32]} 22. axb4 {[%emt 0:00:05]} b6 {[%emt 0:11:14] Against c5} (22... f5 23. c5 $16) 23. Qe3 {[%emt 0:04:57]} Qxb4 {[%emt 0:00:36][%cal Oe5e4]} 24. Rb1 {[%emt 0:00:04]} (24. Qe4 f5 25. Qh4 e4 $17) 24... Qc5 {[%emt 0:00:07]} 25. Rfe1 $40 {[%emt 0:00:06][%mdl 128] White attacks.} (25. Qe4 f5 26. Qe1 e4 $17) 25... e4 {[%emt 0:08:17]} 26. Qxc5 {[%emt 0:07:50]} (26. Bxe4 $2 Qxe3 27. Rxe3 f5 $19) 26... bxc5 {[%emt 0:00:04]} 27. Rxe4 {[%emt 0:00:40]} Rxe4 {[%emt 0:07:21]} 28. Bxe4 $11 {[%emt 0:00:05][%mdl 4096] Endgame KRB-KRB} Re8 {[%emt 0:00:07]} 29. Bd3 {[%emt 0:03:59]} Kf8 {[%emt 0:01:52]} 30. Kg1 {[%emt 0:00:25]} (30. Bxh7 g6 31. Kg1 Re4 $19) 30... Re3 {[%emt 0:05:04]} 31. Rb3 {[%emt 0:00:46]} ({But not} 31. Bxh7 g6 32. Rb7 Bf5 $15) 31... Re1+ {[%emt 0:01:35]} 32. Kf2 {[%emt 0:00:16]} Rc1 {[%emt 0:00:04] [#]} (32... Re5 $11) 33. Rb7 $1 $18 {[%emt 0:02:40]} Ke8 {[%emt 0:04:57] [#]} 34. Rc7 {[%emt 0:16:26]} ({Weaker is} 34. Bxh7 Rxc4 35. Bg8 Ke7 $11) (34. d6 $1 $18 {Threatening mate with Rb8+.} f5 35. Rc7) 34... Rc3 {[%emt 0:01:11]} 35. Be2 {[%emt 0:01:14] &Bianco is more active.} ({Of course not} 35. Bxh7 $6 Rxc4 36. Ke3 Rh4 $11) 35... Ra3 {[%emt 0:02:22]} 36. Rxc5 {[%emt 0:01:12] Strongly threatening Rc7.} Ke7 $2 {[%emt 0:00:20]} (36... Ra2 $16 {was worth a try.}) 37. Rc7 {[%emt 0:00:59]} Kd6 {[%emt 0:01:14]} 38. Rb7 {[%emt 0:00:02][%cal Oc4c5] Hoping for c5+!} f5 $2 {[%emt 0:01:03] Weighted Error Value: White=0.05 (flawless) /Black=0.23 (precise)} (38... Be8 39. Rb8 Bd7) 1-0

[Event "German Bundesliga 2021-22"]
[Site "Germany"]
[Date "2022.04.09"]
[Round "3.13"]
[White "Novikov, Igor"]
[Black "Boensch, Uwe"]
[Result "1-0"]
[ECO "D37"]
[WhiteElo "2551"]
[BlackElo "2494"]
[Annotator "RC"]
[PlyCount "123"]
[EventDate "2022.03.05"]
[EventType "team-tourn"]
[EventCountry "GER"]
[SourceTitle "playchess.com"]
[Source "ChessBase"]
[SourceQuality "1"]
[TimeControl "40/5400+30:1800+30"]

1. d4 {[%emt 0:00:00]} Nf6 {[%emt 0:00:00]} 2. c4 {[%emt 0:00:00]} e6 {[%emt 0:00:00]} 3. Nf3 {[%emt 0:00:00]} d5 {[%emt 0:00:00]} 4. Nc3 {[%emt 0:00:00]} h6 {[%emt 0:00:00]} 5. Bf4 {[%emt 0:00:00]} c5 {[%emt 0:00:00]} 6. e3 {[%emt 0:04:00]} cxd4 {[%emt 0:00:00]} 7. exd4 {[%emt 0:05:19]} Nc6 {[%emt 0:00:00]} 8. a3 {[%emt 0:02:03]} a6 {[%emt 0:04:26]} 9. c5 {[%emt 0:12:15]} g5 {[%emt 0:01:35]} 10. Bg3 {[%emt 0:22:12]} Ne4 {[%emt 0:02:28]} 11. Ne5 {[%emt 0:05:54]} Nxg3 {[%emt 0:06:16]} 12. Nxc6 {[%emt 0:00:15]} bxc6 {[%emt 0:00:26]} 13. hxg3 {[%emt 0:00:18]} Bg7 {[%emt 0:05:44]} 14. Qd2 {[%emt 0:03:18]} e5 {[%emt 0:08:41]} 15. dxe5 {[%emt 0:01:41]} Bxe5 {[%emt 0:02:53]} 16. O-O-O {[%emt 0:04:06]} Qf6 {[%emt 0:04:50]} 17. Na4 {[%emt 0:04:25]} O-O {[%emt 0:14:49]} 18. Bd3 {[%emt 0:00:19]} Bg4 {[%emt 0:04:35]} 19. Rdf1 {[%emt 0:07:23]} Kg7 {[%emt 0:02:18]} 20. f3 {[%emt 0:02:45]} Be6 {[%emt 0:09:20]} 21. f4 {[%emt 0:01:41]} Bd4 {[%emt 0:00:07]} 22. Rh5 {[%emt 0:09:02]} g4 {[%emt 0:13:40]} 23. f5 {[%emt 0:00:24]} Bd7 {[%emt 0:00:18]} 24. Rf4 {[%emt 0:00:29]} Rh8 {[%emt 0:00:24]} 25. Rxg4+ {[%emt 0:01:33]} Kf8 {[%emt 0:00:01]} 26. Bc2 {[%emt 0:02:53]} Be5 {[%emt 0:00:32]} 27. Rgh4 {[%emt 0:00:28]} Rb8 {[%emt 0:03:59]} 28. Nb6 {[%emt 0:02:07]} Bxb2+ {[%emt 0:00:40]} 29. Kd1 {[%emt 0:00:08]} Ke7 {[%emt 0:06:12]} 30. Rxh6 {[%emt 0:01:35]} Rxh6 {[%emt 0:01:09]} 31. Rxh6 {[%emt 0:00:05]} Qg7 {[%emt 0:04:28]} 32. Qf4 {[%emt 0:01:34]} Qd4+ {[%emt 0:01:16]} 33. Qxd4 {[%emt 0:00:25]} Bxd4 {[%emt 0:00:01]} 34. Nxd7 {[%emt 0:01:30]} Kxd7 {[%emt 0:00:07]} 35. Rd6+ {[%emt 0:00:05]} Ke7 {[%emt 0:04:30]} 36. Rxc6 {[%emt 0:00:06]} Rg8 {[%emt 0:00:43]} 37. Bb3 {[%emt 0:02:17]} Rxg3 {[%emt 0:00:48]} 38. Bxd5 {[%emt 0:00:24]} Rxa3 {[%emt 0:00:45]} 39. Rc7+ {[%emt 0:01:16]} Kf6 {[%emt 0:00:17]} 40. c6 {[%emt 0:01:51]} Kxf5 {[%emt 0:01:07]} 41. Rxf7+ {[%emt 0:30:56]} Kg6 {[%emt 0:30:21]} 42. Kd2 {[%emt 0:00:00]} Ra5 {[%emt 0:00:00]} 43. Rd7 {[%emt 0:00:00]} Be5 {[%emt 0:00:00]} 44. Kd3 {[%emt 0:00:00]} Rc5 {[%emt 0:00:00]} 45. Ke4 {[%emt 0:00:00]} Bg3 {[%emt 0:00:00]} 46. Rd8 {[%emt 0:00:00]} Kf6 {[%emt 0:00:00]} 47. Rg8 {[%emt 0:00:00]} Be1 {[%emt 0:00:00]} 48. g4 {[%emt 0:00:00]} Bh4 {[%emt 0:00:00]} 49. Rf8+ {[%emt 0:00:00]} Kg7 {[%emt 0:00:00]} 50. Rf3 {[%emt 0:00:00]} Bf6 {[%emt 0:00:00]} 51. Rf5 {[%emt 0:00:00]} a5 {[%emt 0:00:00]} 52. g5 {[%emt 0:00:00]} Bc3 {[%emt 0:00:00]} 53. Rf7+ {[%emt 0:03:11]} Kg6 {[%emt 0:00:00]} 54. Rd7 {[%emt 0:00:35]} a4 {[%emt 0:00:00]} 55. c7 {[%emt 0:04:49]} a3 {[%emt 0:00:47]} 56. Bf7+ {[%emt 0:00:08]} Kg7 {[%emt 0:00:42]} 57. Bd5+ {[%emt 0:00:58]} Kg6 {[%emt 0:00:10]} 58. Kf4 {[%emt 0:01:19]} Bd2+ {[%emt 0:03:55]} 59. Kg4 {[%emt 0:00:06]} Bxg5 {[%emt 0:00:12]} 60. Rd6+ {[%emt 0:00:18]} Bf6 {[%emt 0:01:06]} 61. Bc6 {[%emt 0:00:17]} Rc4+ {[%emt 0:00:49]} 62. Kf3 {[%emt 0:00:19]} 1-0

[Event "German Bundesliga 2021-22"]
[Site "Germany"]
[Date "2022.04.09"]
[Round "3.13"]
[White "Svane, Frederik"]
[Black "Baldauf, Marco"]
[Result "1-0"]
[ECO "B10"]
[WhiteElo "2496"]
[BlackElo "2522"]
[Annotator "TA"]
[PlyCount "135"]
[EventDate "2022.03.05"]
[EventType "team-tourn"]
[EventCountry "GER"]
[SourceTitle "playchess.com"]
[Source "ChessBase"]
[SourceQuality "1"]
[TimeControl "40/5400+30:1800+30"]

{[%evp 9,135,22,14,19,23,12,18,9,2,-8,95,105,109,110,115,96,96,107,101,96,103,101,108,73,93,0,105,108,138,110,112,109,110,93,111,108,116,96,88,86,82,87,87,89,95,89,86,86,95,86,89,82,88,85,83,79,87,79,91,0,54,59,60,45,66,34,25,23,57,24,39,34,59,50,43,15,61,0,50,46,52,51,54,31,38,0,58,62,72,79,83,76,82,55,85,66,127,104,91,0,131,123,135,129,142,141,193,177,184,225,221,218,507,480,573,579,703,674,720,719,808,753,817,817,1139,1044,816,797]} 1. e4 {[%emt 0:00:00]} c6 {[%emt 0:00:00]} 2. Nf3 {[%emt 0:00:00]} d5 {[%emt 0:00:00]} 3. d3 {[%emt 0:00:00]} g6 {[%emt 0:00:00]} 4. e5 {[%emt 0:00:00]} Bg7 {[%emt 0:00:00]} 5. d4 {[%emt 0:00:00]} f6 {[%emt 0:00:00]} 6. exf6 {[%emt 0:00:00] B10: Caro-Kann: 2 d3 and 2 c4.} (6. c4 {feels hotter.} fxe5 7. Nxe5 Nh6 8. Bxh6 Bxh6 9. cxd5 O-O 10. dxc6 Nxc6 11. Bc4+) 6... Nxf6 {[%emt 0:00:00]} 7. Be2 {[%emt 0:00:00]} O-O {[%emt 0:00:00][%cal Oc6c5]} 8. O-O {[%emt 0:00:00] The position is equal.} c5 {[%emt 0:22:33]} 9. dxc5 {[%emt 0:00:00] [#]} Qc7 $146 {[%emt 0:03:52]} (9... Ne4 $11) ({Predecessor:} 9... Nc6 10. c3 e5 11. b4 Bg4 12. h3 Bxf3 13. Bxf3 e4 14. Be2 d4 15. cxd4 Qxd4 16. Qxd4 Nxd4 {0-1 (44) Lagarde,M (2640)-Navara,D (2691) Legnica 2021}) 10. c4 $16 {[%emt 0:11:15]} dxc4 {[%emt 0:07:38]} 11. Qd4 {[%emt 0:10:32]} (11. Bxc4+ Kh8 $14) 11... Ng4 {[%emt 0:07:41]} 12. Qxc4+ {[%emt 0:03:52]} ({Worse is} 12. Bxc4+ Kh8 13. Qd5 b5 14. cxb6 axb6 $15) 12... Kh8 {[%emt 0:00:03][%cal Of8f3] Threatens to win with ...Rxf3!} 13. h3 {[%emt 0:09:35]} Ne5 {[%emt 0:00:05]} 14. Nxe5 {[%emt 0:07:43]} Qxe5 {[%emt 0:00:05]} 15. Nc3 {[%emt 0:01:16]} Nc6 {[%emt 0:10:10]} 16. Bg4 {[%emt 0:10:17]} Qd4 {[%emt 0:12:14]} 17. Be2 {[%emt 0:03:31]} ({White should play} 17. Qxd4 $16 Bxd4 18. Bxc8 (18. Bh6 Rd8 $16) 18... Raxc8 19. Be3) 17... Qxc4 {[%emt 0:05:35]} (17... Qe5 $1 $11 {keeps the balance.}) 18. Bxc4 {[%emt 0:00:08]} Ne5 {[%emt 0:00:06]} 19. Be2 {[%emt 0:01:29]} Be6 {[%emt 0:01:31]} 20. Bg5 {[%emt 0:04:25]} Nc6 {[%emt 0:04:12]} 21. Be3 {[%emt 0:10:10]} Nd4 {[%emt 0:03:46]} 22. Bd3 {[%emt 0:00:34] Inhibits Nc2.} Rac8 {[%emt 0:04:17]} 23. Rad1 {[%emt 0:03:05]} Nf5 {[%emt 0:04:54]} 24. Bxf5 {[%emt 0:00:19]} gxf5 {[%emt 0:00:05]} 25. Rfe1 {[%emt 0:02:51]} Bxc3 {[%emt 0:03:02]} 26. bxc3 {[%emt 0:00:01] Hoping for Bd4+.} Kg8 {[%emt 0:00:10]} 27. Bd4 {[%emt 0:10:28]} Kf7 {[%emt 0:00:23]} 28. Re5 {[%emt 0:00:20]} Rg8 {[%emt 0:03:15]} 29. a3 {[%emt 0:00:36]} Rc6 {[%emt 0:01:32]} 30. Kh2 {[%emt 0:02:06]} h5 {[%emt 0:05:15]} 31. Rb1 {[%emt 0:03:45]} Bc8 {[%emt 0:00:17]} 32. Rbe1 {[%emt 0:01:44]} Be6 {[%emt 0:00:05]} 33. R1e3 {[%emt 0:01:14]} Rg6 {[%emt 0:00:15]} 34. Re1 {[%emt 0:04:36]} (34. a4 $16) 34... Ra6 {[%emt 0:01:04]} (34... Rg8 $1 $11) 35. Rb1 $14 {[%emt 0:00:02]} Bc8 {[%emt 0:00:07]} 36. Rb3 {[%emt 0:00:16]} Rg8 {[%emt 0:01:20]} 37. Re3 {[%emt 0:00:23]} (37. c6 $5 bxc6 38. Bc5 $14) 37... Rag6 {[%emt 0:02:16]} 38. g3 {[%emt 0:00:01]} Ra6 {[%emt 0:00:21]} 39. Re5 {[%emt 0:01:32][%cal Oc5c6]} (39. c6 $5 bxc6 40. Bc5 $14) 39... Rgg6 {[%emt 0:00:59]} 40. Kg2 {[%emt 0:00:23]} Rgc6 {[%emt 0:00:48]} 41. Kf3 {[%emt 0:00:00]} Rg6 {[%emt 0:00:00]} 42. Kf4 {[%emt 0:00:00]} Rh6 {[%emt 0:00:00]} (42... h4 $1 $11) 43. Kf3 {[%emt 0:00:00]} Rhg6 $1 {[%emt 0:00:00]} 44. Be3 {[%emt 0:04:39]} Rg8 {[%emt 0:02:41]} 45. Ke2 {[%emt 0:01:35]} Ra4 {[%emt 0:05:31]} 46. Bd4 {[%emt 0:10:48]} Rg6 {[%emt 0:00:19]} 47. Be3 {[%emt 0:00:16]} Rg8 {[%emt 0:07:26]} 48. Kd2 {[%emt 0:05:29]} Kf6 {[%emt 0:04:55]} 49. Bd4 {[%emt 0:00:15][%cal Oc5c6]} Kf7 {[%emt 0:00:17]} 50. Kc2 {[%emt 0:01:04]} Ra6 {[%emt 0:00:07]} 51. Kb2 {[%emt 0:02:15]} Rc6 {[%emt 0:04:15]} 52. Rb4 {[%emt 0:00:32]} Ra6 {[%emt 0:01:23]} (52... h4 $14) 53. Be3 {[%emt 0:00:21]} Kf6 {[%emt 0:02:26]} 54. Bd4 {[%emt 0:00:33]} Kf7 $1 {[%emt 0:00:03]} 55. c6 $1 {[%emt 0:01:25]} bxc6 {[%emt 0:01:38]} 56. Rb8 {[%emt 0:00:47] &Bianco is more active.} Rd8 {[%emt 0:05:28]} 57. Bc5 {[%emt 0:02:42]} e6 {[%emt 0:00:03] [#]} (57... Re8 $16 {keeps fighting.} 58. c4 Ra4) 58. Kb3 $1 $18 {[%emt 0:01:25]} Ke8 {[%emt 0:00:04]} 59. g4 {[%emt 0:04:21]} hxg4 {[%emt 0:00:33]} 60. hxg4 {[%emt 0:00:09]} fxg4 {[%emt 0:01:14]} (60... Kd7 {was necessary.} 61. g5 (61. gxf5 Kc7 $16) 61... Kc7) 61. Rh5 {[%emt 0:00:54] White is clearly winning.} e5 {[%emt 0:00:25]} 62. Kb4 {[%emt 0:01:13]} Kf7 {[%emt 0:02:07]} 63. Rh7+ {[%emt 0:00:50][%mdl 64] [#] Skewer} Ke6 {[%emt 0:00:05]} 64. Rc7 {[%emt 0:00:35]} Rd2 {[%emt 0:00:05]} 65. Rbxc8 {[%emt 0:00:44]} Rb2+ {[%emt 0:01:14]} 66. Kc4 {[%emt 0:00:03]} Ra4+ {[%emt 0:00:03]} 67. Kd3 {[%emt 0:00:36]} Kd5 {[%emt 0:00:05]} 68. Rxc6 {[%emt 0:01:10] Weighted Error Value: White=0.13 (very precise) /Black=0.22 (precise)} 1-0

[Event "German Bundesliga 2021-22"]
[Site "Germany"]
[Date "2022.04.09"]
[Round "3.14"]
[White "Jakubowski, Krzysztof"]
[Black "Heinemann, Thies"]
[Result "0-1"]
[ECO "B90"]
[WhiteElo "2475"]
[BlackElo "2495"]
[Annotator "TA"]
[PlyCount "80"]
[EventDate "2022.03.05"]
[EventType "team-tourn"]
[EventCountry "GER"]
[SourceTitle "playchess.com"]
[Source "ChessBase"]
[SourceQuality "1"]
[TimeControl "40/5400+30:1800+30"]

{[%evp 13,80,20,21,18,8,-8,47,52,50,20,50,40,56,50,60,0,0,-22,0,-14,-12,-31,-22,-24,-27,-24,-30,-67,-78,-70,-68,-74,-72,-80,-60,-135,-135,-167,-154,-173,-110,-137,-137,-156,-141,-158,-142,-120,-79,-114,-68,-73,-22,-31,-10,-77,-87,-123,-127,-361,-333,-732,-230,-29989,-29990,-29995,-29996,-29997,358]} 1. e4 {[%emt 0:02:17]} c5 {[%emt 0:00:00]} 2. Nf3 {[%emt 0:00:08]} d6 {[%emt 0:00:00]} 3. d4 {[%emt 0:00:05]} cxd4 {[%emt 0:00:00]} 4. Nxd4 {[%emt 0:00:05]} Nf6 {[%emt 0:00:00]} 5. Nc3 {[%emt 0:00:06]} a6 {[%emt 0:00:00]} 6. Be3 {[%emt 0:00:06]} e5 {[%emt 0:00:00]} 7. Nb3 {[%emt 0:00:08]} Be6 {[%emt 0:00:00]} 8. h3 {[%emt 0:00:09] B90: Sicilian Najdorf: Unusual White 6th moves, 6 Be3 Ng4 and 6 Be3 e5.} Be7 {[%emt 0:00:00]} 9. Qf3 {[%emt 0:01:20]} h5 {[%emt 0:00:00] 9...Nbd7 is the modern continuation.} (9... O-O $11) 10. O-O-O {[%emt 0:11:05][%cal Ob3c5] White is slightly better.} Nbd7 {[%emt 0:00:00] Against Nc5} 11. Kb1 {[%emt 0:01:12]} Rc8 {[%emt 0:00:00][%cal Oc8c3]} 12. Nd5 {[%emt 0:00:12]} Bxd5 {[%emt 0:00:35]} 13. exd5 {[%emt 0:00:06]} Nb6 {[%emt 0:02:01]} 14. Bxb6 {[%emt 0:25:33]} ({White should try} 14. c3 $14) 14... Qxb6 $11 {[%emt 0:00:16]} 15. Bd3 {[%emt 0:00:05]} g6 {[%emt 0:09:08]} 16. g4 {[%emt 0:05:41]} h4 {[%emt 0:04:57] [#]} 17. Rhf1 $146 {[%emt 0:09:55]} ({Predecessor:} 17. g5 Nh5 18. Qg4 Qd8 19. Qxh4 Bxg5 20. Qg4 Nf4 21. h4 Rxh4 22. Rxh4 Bxh4 23. Na5 {½-½ (54) Nestorovic,L (2353)-Jesic,D (2322) Kragujevac 2018}) 17... O-O {[%emt 0:05:02]} 18. Qg2 {[%emt 0:03:50]} Nh7 {[%emt 0:16:29]} 19. Nd2 {[%emt 0:02:31]} Ng5 {[%emt 0:15:08]} 20. Ne4 {[%emt 0:07:49]} Nxe4 {[%emt 0:02:38]} 21. Qxe4 {[%emt 0:00:46]} Bg5 {[%emt 0:01:11] Prevents f4.} 22. Qa4 {[%emt 0:03:39]} Rc5 {[%emt 0:06:36]} 23. c4 {[%emt 0:03:56]} Rfc8 {[%emt 0:08:32]} 24. Qb3 {[%emt 0:00:33]} ({White should play} 24. Rde1 $15) 24... Qc7 $1 $17 {[%emt 0:01:22][%cal Ob7b5]} 25. a4 {[%emt 0:00:16] Prevents b5.} e4 {[%emt 0:09:45]} 26. Be2 {[%emt 0:03:21]} Bf6 {[%emt 0:03:18]} (26... Qa5 $19 {[%cal Ob7b5] Hoping for ...b5!} 27. Rd4 Re8) 27. g5 {[%emt 0:04:50]} Bg7 {[%emt 0:01:30][%cal Ob7b5] ...b5! is the strong threat.} 28. Rd2 {[%emt 0:01:27]} Re8 {[%emt 0:06:30]} 29. Rg1 {[%emt 0:01:44]} Qa5 {[%emt 0:02:30]} 30. Rc2 {[%emt 0:04:45]} Rec8 {[%emt 0:01:22][%cal Ob7b5] Threatens to win with ...b5!} 31. Qa3 {[%emt 0:02:27]} Qb6 {[%emt 0:02:12]} (31... Qd8 $17 {[%cal Ob7b5] Strongly threatening ...b5!} 32. Rg4 b5) 32. Rg4 $15 {[%emt 0:01:27][%csl LRe4,LRh4] [#]} Qd8 {[%emt 0:03:49] &Nero is more active.} (32... Re8 $1 $17) 33. Qe3 $11 {[%emt 0:02:37]} b5 {[%emt 0:00:12][%cal Bb7b5,Bb5a4,Ba4a3][%mdl 32]} 34. Rxe4 {[%emt 0:00:06]} (34. Rxh4 $11 bxa4 35. Rxe4) 34... bxa4 $17 {[%emt 0:00:11]} 35. Bg4 {[%emt 0:01:27]} Rb8 {[%emt 0:00:17] And now ...Rc7 would win.} 36. Re7 {[%emt 0:00:08] This costs White the game.} (36. Bd1 $17 {was necessary.}) 36... a3 $19 {[%emt 0:01:07][%cal Ra3b2]} 37. Bd7 $2 {[%emt 0:01:32]} ({Not} 37. Rd7 $2 Qa5 38. Qxa3 Qe1+ 39. Rc1 Qe4+ 40. Rc2 Qe1+ 41. Rc1 Qxf2 42. Rd8+ Rxd8 $19) (37. b3 Rxb3+ 38. Qxb3 Qxe7 39. Ka2) 37... Qb6 $2 {[%emt 0:01:12]} (37... Rxb2+ $2 38. Rxb2 axb2 39. Re8+ Qxe8 40. Qxe8+ $18) (37... axb2 {( -> ...Qa5)} 38. Re8+ Kh7 39. Rxd8 {[#]} Ra5 $1 {[%mdl 512]}) 38. Be8 $2 {[%emt 0:01:16]} (38. Re8+ $19 Rxe8 39. Bxe8 (39. Qxe8+ $2 {too greedy.} Kh7 $19)) 38... a2+ {[%emt 0:00:29] Black mates.} 39. Kxa2 {[%emt 0:00:35]} Ra5+ {[%emt 0:00:16]} 40. Kb1 {[%emt 0:00:07] [#]} Qxb2+ $1 {[%emt 0:00:12][%mdl 33344] Back Rank.  Weighted Error Value: White=0.55/Black=0.22 (precise) . Loss on time!?} 0-1